bitfinex/quotes_SOLUSD_20240826
["timestamp","ask_amount","ask_price","bid_price","bid_amount"]
[1724658087082,1.56774739,159.5,159.44,20.0]
[1724658094686,1.56774739,159.5,159.42,20.0]
[1724658096213,1.56774739,159.5,159.43,1.56938833]
[1724658097509,1.56774739,159.5,159.42,20.0]
[1724658097807,1.56774739,159.5,159.43,1.56938833]
[1724658098494,1.56774739,159.5,159.43,11.24716839]
[1724658098692,32.8653,159.51,159.45,9.67778006]
[1724658098882,32.8653,159.51,159.46,20.0]
[1724658099198,32.8653,159.51,159.47,9.67778006]
[1724658099407,43.8685,159.56,159.49,9.67778006]
[1724658099615,43.8685,159.56,159.5,20.0]
[1724658102309,43.8685,159.56,159.5,21.25378076]
[1724658102616,340.02496759,159.55,159.5,20.0]
[1724658102800,340.02496759,159.55,159.49,9.67778006]
[1724658103393,340.02496759,159.55,159.49,11.24670086]
[1724658103790,340.02496759,159.55,159.49,14.81249075]
[1724658103989,340.02496759,159.55,159.49,13.24356995]
[1724658104195,340.02496759,159.54,159.51,9.67778006]
[1724658104393,340.02496759,159.54,159.52,5.13266578]
[1724658104609,340.02496759,159.54,159.53,1.56890316]
[1724658104909,340.02496759,159.54,159.53,5.13266578]
[1724658106299,340.02496759,159.54,159.53,1.56890316]
[1724658106715,340.02496759,159.54,159.52,3.56376262]
[1724658106990,340.02496759,159.54,159.53,1.56862925]
[1724658107211,340.02496759,159.54,159.52,6.38729527]
[1724658107613,340.02496759,159.54,159.53,5.13239187]
[1724658108027,30.1329,159.6,159.53,14.81017193]
[1724658108208,13.3136,159.64,159.58,9.67778006]
[1724658108396,13.3136,159.64,159.59,1.25308563]
[1724658108615,14.87993849,159.64,159.56,14.81017193]
[1724658108821,14.87993849,159.64,159.57,5.13239187]
[1724658109007,14.87993849,159.64,159.58,1.56862925]
[1724658109209,14.87993849,159.64,159.57,1.56862925]
[1724658109418,13.3136,159.64,159.58,1.25309926]
[1724658111209,13.3136,159.64,159.57,1.2530976]
[1724658112427,13.3136,159.64,159.56,12.12857098]
[1724658115309,14.87999458,159.64,159.56,12.12857098]
[1724658116831,14.87999458,159.64,159.56,9.67778006]
[1724658117408,14.87999458,159.64,159.54,20.0]
[1724658117607,14.87999458,159.64,159.54,9.67778006]
[1724658118037,14.87999458,159.64,159.54,12.12450284]
[1724658120326,9.67778006,159.63,159.52,12.0757]
[1724658120535,1.56679725,159.62,159.52,21.75348006]
[1724658121544,1.56679725,159.62,159.54,9.67778006]
[1724658121749,1.56659526,159.62,159.54,9.67778006]
[1724658122944,1.5665104,159.61,159.54,9.67778006]
[1724658123151,1.56665199,159.63,159.54,9.67778006]
[1724658129425,1.56665199,159.63,159.56,9.67778006]
[1724658129928,1.56643521,159.64,159.56,9.67778006]
[1724658131437,1.56639898,159.66,159.56,9.67778006]
[1724658132227,1.56639898,159.66,159.58,9.67778006]
[1724658133156,1.56639898,159.66,159.54,30.1533]
[1724658133448,46.56639898,159.66,159.55,45.0]
[1724658133745,46.56639898,159.66,159.56,9.67778006]
[1724658134932,46.56639898,159.66,159.55,45.0]
[1724658135131,46.56639898,159.66,159.54,32.61526587]
[1724658135132,9.67778006,159.65,159.54,42.29304593]
[1724658135351,1.56659204,159.64,159.54,42.29304593]
[1724658135656,391.86659204,159.64,159.54,42.29304593]
[1724658136233,391.86659204,159.64,159.56,9.67778006]
[1724658137350,390.3,159.64,159.56,9.67778006]
[1724658137856,1.56655044,159.63,159.56,9.67778006]
[1724658138047,1.56655037,159.62,159.56,9.67778006]
[1724658138651,1.56655237,159.63,159.56,9.67778006]
[1724658139332,1.56655237,159.63,159.54,42.29304593]
[1724658141356,1.56655237,159.63,159.56,9.67778006]
[1724658142038,390.3,159.65,159.57,1.25323841]
[1724658142229,1.56655243,159.64,159.56,9.67778006]
[1724658143357,1.56655243,159.64,159.56,13.23217095]
[1724658143861,1.56655243,159.64,159.57,3.55439089]
[1724658144233,1.56655243,159.64,159.56,9.67778006]
[1724658144456,1.56655243,159.64,159.57,3.55380841]
[1724658144660,1.56655243,159.64,159.56,9.67778006]
[1724658144927,1.56655243,159.64,159.57,3.55359327]
[1724658145236,1.56655243,159.64,159.56,12.17893513]
[1724658145548,1.56655243,159.64,159.56,9.67778006]
[1724658147235,1.56655243,159.64,159.56,12.17893513]
[1724658147758,1.56636643,159.65,159.56,12.17893513]
[1724658147962,1.56636545,159.64,159.56,12.17893513]
[1724658148475,1.56636545,159.64,159.57,2.50115507]
[1724658149067,1.56636563,159.65,159.57,2.50115507]
[1724658149270,1.56636586,159.64,159.58,2.50115507]
[1724658149470,1.56636586,159.64,159.57,2.50115507]
[1724658149676,1.56636586,159.64,159.58,2.50115507]
[1724658149880,1.56636586,159.64,159.57,2.50115507]
[1724658150051,1.56636586,159.64,159.58,2.50115507]
[1724658150368,1.56636586,159.64,159.56,9.67778006]
[1724658150555,4.83507123,159.64,159.57,2.50110769]
[1724658150757,4.83507123,159.64,159.58,2.50110769]
[1724658150940,4.83507123,159.64,159.56,9.67778006]
[1724658151267,4.83507123,159.64,159.57,2.50119707]
[1724658151571,4.83507123,159.64,159.58,12.17897713]
[1724658151869,3.26870537,159.64,159.59,2.50119707]
[1724658152170,3.26870537,159.64,159.58,9.67778006]
[1724658152472,3.26870537,159.64,159.59,2.50077027]
[1724658152767,3.26870537,159.64,159.58,9.67778006]
[1724658153061,1.56636446,159.63,159.58,9.67778006]
[1724658153263,1.56636446,159.63,159.56,9.58682636]
[1724658157467,3.26870537,159.64,159.56,9.58682636]
[1724658157764,4.83504621,159.64,159.56,9.58682636]
[1724658160274,4.83504621,159.64,159.57,9.67778006]
[1724658160470,3.26870537,159.64,159.58,1.25307383]
[1724658160773,3.26870537,159.65,159.58,1.25307383]
[1724658162069,1.56634295,159.64,159.54,32.61526587]
[1724658162269,37.08104832,159.64,159.55,20.0]
[1724658162480,3.26870537,159.62,159.54,12.13974593]
[1724658162799,4.83530193,159.61,159.54,9.67778006]
[1724658163078,1.5666309,159.6,159.54,9.67778006]
[1724658164791,3.26870537,159.61,159.54,9.67778006]
[1724658165465,1.56671699,159.6,159.54,9.67778006]
[1724658165658,4.83542236,159.6,159.54,9.67778006]
[1724658165859,1.56671699,159.6,159.54,9.67778006]
[1724658166456,31.2651,159.59,159.52,9.67778006]
[1724658166660,1.56685743,159.58,159.48,13.2657]
[1724658166967,34.53380537,159.59,159.5,9.67778006]
[1724658166968,1.56698387,159.57,159.5,9.67778006]
[1724658167764,1.56700322,159.58,159.5,9.67778006]
[1724658174979,13.86730322,159.58,159.5,9.67778006]
[1724658175187,23.54508328,159.58,159.48,12.17383362]
[1724658175484,23.54508328,159.58,159.48,2.49605356]
[1724658175485,413.84508328,159.58,159.48,2.49605356]
[1724658175688,413.84508328,159.58,159.48,54.67778006]
[1724658177502,413.84508328,159.58,159.48,9.67778006]
[1724658178017,41.91218006,159.56,159.46,16.22954623]
[1724658178307,9.67778006,159.52,159.43,6.60610055]
[1724658178488,1.56769495,159.51,159.42,24.39498372]
[1724658178815,422.5344,159.5,159.4,9.67778006]
[1724658178995,14.38279708,159.49,159.4,9.67778006]
[1724658179199,1.56799723,159.48,159.4,2.44145396]
[1724658179501,1.56799723,159.48,159.4,9.67778006]
[1724658179704,403.1148,159.49,159.42,9.67778006]
[1724658180799,403.1148,159.49,159.44,9.67778006]
[1724658182196,390.3,159.49,159.44,9.67778006]
[1724658182524,390.3,159.49,159.45,1.25411567]
[1724658183212,32.2344,159.5,159.45,1.25411567]
[1724658184013,32.2344,159.5,159.38,35.67250944]
[1724658184014,32.2344,159.5,159.46,10.93191736]
[1724658184321,32.2344,159.5,159.46,9.67778006]
[1724658185639,32.2344,159.5,159.44,9.67778006]
[1724658186337,1.56758669,159.49,159.44,9.67778006]
[1724658187217,32.2344,159.5,159.44,9.67778006]
[1724658188110,1.56772364,159.49,159.42,9.67778006]
[1724658190750,32.2344,159.5,159.44,9.67778006]
[1724658191105,33.8022095,159.5,159.44,9.67778006]
[1724658192007,33.8022095,159.5,159.42,12.17331939]
[1724658193640,33.8022095,159.5,159.44,9.67778006]
[1724658193860,32.2344,159.5,159.44,9.67778006]
[1724658194014,33.80197723,159.5,159.44,9.67778006]
[1724658194346,33.80197723,159.5,159.42,12.17331939]
[1724658194541,33.80197723,159.5,159.42,9.67778006]
[1724658196830,33.80197723,159.5,159.39,2.5266062]
[1724658197033,33.80197723,159.5,159.4,9.67778006]
[1724658200937,390.3,159.49,159.4,9.67778006]
[1724658201146,1.56800696,159.48,159.4,9.67778006]
[1724658205660,390.3,159.49,159.4,9.67778006]
[1724658206151,390.3,159.49,159.42,9.67778006]
[1724658206830,32.2344,159.5,159.42,9.67778006]
[1724658207052,1.56781342,159.49,159.42,9.67778006]
[1724658207365,1.56781755,159.48,159.42,9.67778006]
[1724658208450,1.56783977,159.49,159.42,9.67778006]
[1724658209239,1.56781813,159.48,159.4,9.67778006]
[1724658210159,32.2344,159.5,159.4,9.67778006]
[1724658210456,32.2344,159.5,159.42,9.67778006]
[1724658212229,32.2344,159.5,159.44,9.67778006]
[1724658212922,33.80203089,159.5,159.44,9.67778006]
[1724658214047,32.2344,159.5,159.44,9.67778006]
[1724658214245,33.80200403,159.5,159.44,9.67778006]
[1724658215945,32.2344,159.5,159.44,9.67778006]
[1724658216830,33.80196723,159.5,159.44,9.67778006]
[1724658217453,32.2344,159.5,159.44,10.93199126]
[1724658218230,32.2344,159.5,159.44,13.44578271]
[1724658218430,32.2344,159.5,159.44,10.93199126]
[1724658218638,32.2344,159.5,159.44,12.19157151]
[1724658218968,32.2344,159.5,159.44,9.67778006]
[1724658219141,32.2344,159.5,159.44,12.19157151]
[1724658219336,32.2344,159.5,159.45,2.51379145]
[1724658220272,32.2344,159.5,159.46,2.51379145]
[1724658220565,32.2344,159.5,159.45,2.51379145]
[1724658220736,32.2344,159.5,159.46,2.51379145]
[1724658220936,32.2344,159.5,159.45,2.51379145]
[1724658221143,1.56771461,159.49,159.46,2.51379145]
[1724658221437,1.56771461,159.49,159.47,2.51379145]
[1724658221753,32.2344,159.5,159.45,2.51155956]
[1724658222059,32.2344,159.5,159.46,2.51155956]
[1724658222355,32.2344,159.5,159.47,2.51155956]
[1724658222553,32.2344,159.5,159.44,17.50140786]
[1724658223064,32.2344,159.5,159.44,23.7603101]
[1724658223262,32.2344,159.5,159.44,17.50140786]
[1724658223564,32.2344,159.5,159.45,7.8236278]
[1724658227464,32.2344,159.5,159.45,7.82309112]
[1724658228567,32.2344,159.5,159.46,1.25539632]
[1724658228754,32.2344,159.5,159.47,1.25539632]
[1724658228956,32.2344,159.5,159.48,1.25539632]
[1724658229169,32.2344,159.5,159.49,1.25539632]
[1724658231881,32.2344,159.5,159.45,7.8210538]
[1724658232170,32.2344,159.5,159.46,1.25539525]
[1724658232468,32.2344,159.5,159.47,1.25539525]
[1724658232672,32.2344,159.5,159.48,1.25539525]
[1724658232846,32.2344,159.5,159.49,1.25539525]
[1724658237472,32.2344,159.5,159.45,7.8210538]
[1724658237664,32.2344,159.5,159.49,1.25540421]
[1724658237969,32.2344,159.5,159.46,1.25540421]
[1724658238161,32.2344,159.5,159.47,1.25540421]
[1724658238348,32.2344,159.5,159.48,1.25540421]
[1724658238551,1.56771698,159.49,159.44,7.8210538]
[1724658238860,1.56771698,159.49,159.45,1.2554664]
[1724658239064,1.56772179,159.48,159.46,1.2554664]
[1724658239358,14.49891486,159.48,159.47,1.2554664]
[1724658239660,31.1274,159.47,159.41,14.07772555]
[1724658239848,11.21744872,159.46,159.42,1.25576639]
[1724658240047,11.21744872,159.46,159.43,1.25576639]
[1724658240284,395.10837403,159.46,159.39,14.07772555]
[1724658240452,9.67778006,159.44,159.4,1.25595886]
[1724658240786,1.53988473,159.43,159.41,1.25597331]
[1724658241084,1.53988039,159.42,159.37,14.09619819]
[1724658241275,1.53988039,159.42,159.38,1.2559734]
[1724658241686,33.3315,159.41,159.39,1.2559734]
[1724658241991,1.54012356,159.4,159.36,7.83115526]
[1724658242282,1.54014733,159.39,159.37,1.25606196]
[1724658242483,1.54014733,159.39,159.38,1.25606196]
[1724658242867,1.54014733,159.39,159.38,1.25607243]
[1724658243366,1.54012364,159.4,159.38,1.25610309]
[1724658243565,1.54012475,159.39,159.34,7.83158196]
[1724658243759,1.54012475,159.39,159.35,1.25608453]
[1724658243959,1.54012475,159.39,159.36,1.25608453]
[1724658244168,1.54012475,159.39,159.37,1.25608453]
[1724658244368,1.54012475,159.39,159.34,1.25611951]
[1724658244569,1.54013167,159.4,159.35,1.25611951]
[1724658244860,1.54013167,159.4,159.36,1.25611951]
[1724658245073,1.54013167,159.4,159.37,1.25611951]
[1724658245271,1.54013167,159.4,159.34,1.25611951]
[1724658245458,1.54013167,159.4,159.35,1.25611951]
[1724658245658,1.54013167,159.4,159.36,1.25611951]
[1724658245958,1.54013167,159.4,159.32,9.67778006]
[1724658246182,1.54013167,159.4,159.33,9.08837143]
[1724658246377,1.54013167,159.4,159.33,1.25611098]
[1724658246691,1.54013167,159.4,159.34,1.25611098]
[1724658246874,1.54013167,159.4,159.35,1.25611098]
[1724658247185,1.54013167,159.4,159.36,1.25611098]
[1724658247394,1.54013167,159.4,159.33,1.25611098]
[1724658247685,1.54013167,159.4,159.34,1.25611098]
[1724658247851,1.54013167,159.4,159.35,1.25611098]
[1724658248050,1.54013167,159.4,159.33,1.25611098]
[1724658248250,1.54013167,159.4,159.34,1.25611098]
[1724658248480,1.54013167,159.4,159.33,1.25611098]
[1724658248682,1.54013167,159.4,159.34,1.25611098]
[1724658248860,1.54013167,159.4,159.33,1.25611098]
[1724658249060,11.21791173,159.4,159.34,1.25611098]
[1724658249260,11.21791173,159.4,159.32,1.25617196]
[1724658249461,11.21791173,159.4,159.3,15.94497494]
[1724658249462,11.21791173,159.4,159.33,1.25617196]
[1724658249658,11.21791173,159.4,159.32,1.25617196]
[1724658249864,11.21791173,159.4,159.33,1.25617196]
[1724658250088,11.21791173,159.4,159.31,1.25617196]
[1724658250393,9.67778006,159.4,159.32,1.25617196]
[1724658250694,1.56898779,159.39,159.32,1.25617196]
[1724658250857,1.56898779,159.39,159.3,9.67778006]
[1724658253216,391.86898779,159.39,159.3,9.67778006]
[1724658254796,44.8879,159.38,159.28,2.47404108]
[1724658255012,1.56909415,159.37,159.29,9.67778006]
[1724658255392,1.56909415,159.37,159.28,45.0]
[1724658255606,1.56909415,159.37,159.29,9.67778006]
[1724658262622,1.56909415,159.37,159.28,9.67778006]
[1724658263206,444.86568006,159.38,159.29,1.25536537]
[1724658263402,390.3,159.37,159.28,9.67778006]
[1724658263603,1.56923212,159.36,159.28,9.67778006]
[1724658263925,1.56923212,159.35,159.28,9.67778006]
[1724658265445,390.3,159.37,159.29,1.25538391]
[1724658265936,390.3,159.37,159.29,3.56345341]
[1724658266112,390.3,159.37,159.29,1.5704544]
[1724658266308,390.3,159.37,159.28,12.81867825]
[1724658266512,390.3,159.37,159.29,1.25538431]
[1724658266814,390.3,159.37,159.29,1.5704544]
[1724658267039,390.3,159.37,159.28,12.81867825]
[1724658267857,1.56923082,159.36,159.28,12.81867825]
[1724658268139,1.56923371,159.35,159.28,12.81867825]
[1724658269137,1.56923371,159.35,159.28,11.24822385]
[1724658269446,1.56923371,159.35,159.28,12.81867921]
[1724658270150,1.56923431,159.36,159.28,12.81867921]
[1724658270516,1.56923431,159.36,159.28,3.14089915]
[1724658270743,1.56923431,159.36,159.28,11.24822385]
[1724658271042,1.56923431,159.36,159.28,12.81867921]
[1724658271414,1.56923431,159.36,159.29,1.57045536]
[1724658271838,1.56923431,159.36,159.28,11.24822385]
[1724658272717,11.24701437,159.36,159.28,1.57044379]
[1724658272918,30.6319,159.35,159.28,1.57044379]
[1724658273147,1.56947971,159.34,159.28,1.57044379]
[1724658274016,1.56947971,159.34,159.27,1.57051992]
[1724658275933,1.56947971,159.34,159.26,16.22527276]
[1724658276138,434.9336,159.33,159.27,7.72896113]
[1724658276448,11.24745282,159.32,159.22,15.74913457]
[1724658276619,401.54745282,159.32,159.23,11.24882592]
[1724658276823,391.86967276,159.32,159.23,11.24882592]
[1724658277040,391.86967276,159.32,159.23,1.57104586]
[1724658277242,390.3,159.32,159.24,9.67778006]
[1724658277870,1.56978383,159.31,159.24,9.67778006]
[1724658279847,390.3,159.32,159.24,9.67778006]
[1724658280150,390.3,159.32,159.23,1.57112959]
[1724658280349,390.3,159.32,159.24,9.67778006]
[1724658281645,1.56978109,159.31,159.24,9.67778006]
[1724658281836,1.56978109,159.31,159.23,1.57112959]
[1724658282230,1.56978109,159.31,159.24,1.57112959]
[1724658282430,1.56978109,159.31,159.23,1.57112959]
[1724658282750,1.56978109,159.31,159.24,1.57112959]
[1724658282952,1.56978109,159.31,159.22,26.1669472]
[1724658282953,1.56978109,159.31,159.23,1.57112959]
[1724658283256,1.56978109,159.31,159.24,1.57112959]
[1724658283548,1.56978109,159.31,159.25,1.57112959]
[1724658283752,1.56978109,159.31,159.23,1.57112959]
[1724658283937,1.56978109,159.31,159.22,26.1669472]
[1724658283938,1.56978109,159.31,159.24,1.57112959]
[1724658284248,1.56978109,159.31,159.25,1.57112959]
[1724658284429,1.56978109,159.31,159.26,1.57112959]
[1724658284637,1.56978109,159.31,159.23,7.73807679]
[1724658284937,1.56978109,159.31,159.24,1.57112959]
[1724658285145,1.56978109,159.31,159.25,1.57112959]
[1724658285458,1.56978109,159.31,159.26,1.57112959]
[1724658285665,1.56978109,159.31,159.24,1.57112929]
[1724658285962,1.56978109,159.31,159.25,1.57112929]
[1724658286150,1.56978109,159.31,159.26,1.57112929]
[1724658286445,1.56978109,159.31,159.24,1.57112929]
[1724658286668,1.56978109,159.31,159.25,1.57112929]
[1724658286832,1.56978109,159.31,159.26,1.57112929]
[1724658287033,1.56978109,159.31,159.24,1.57112929]
[1724658287250,391.86978109,159.31,159.25,1.57112929]
[1724658287426,391.86978109,159.31,159.26,1.57112929]
[1724658287627,391.86978109,159.31,159.24,1.57112929]
[1724658287856,391.86978109,159.31,159.25,1.57112929]
[1724658288056,390.3,159.31,159.26,1.57112929]
[1724658288255,390.3,159.31,159.25,1.57112929]
[1724658288430,1.5698178,159.3,159.26,1.57112929]
[1724658288631,1.56981402,159.29,159.25,1.57112929]
[1724658288936,1.56981402,159.29,159.26,1.57112929]
[1724658289142,1.56981402,159.29,159.25,1.57112929]
[1724658289348,1.56981402,159.29,159.26,1.57112929]
[1724658289551,1.56981481,159.3,159.25,1.57112929]
[1724658289854,1.56981874,159.29,159.26,1.57112929]
[1724658290042,1.56981874,159.29,159.25,1.57112929]
[1724658290380,390.3,159.31,159.26,11.24890935]
[1724658290533,390.3,159.31,159.26,9.67778006]
[1724658290728,390.3,159.31,159.26,11.24890935]
[1724658291028,390.3,159.31,159.27,1.57112929]
[1724658291444,390.3,159.31,159.28,1.57112929]
[1724658291653,390.3,159.31,159.27,1.57112929]
[1724658291854,390.3,159.31,159.26,9.67778006]
[1724658292230,390.3,159.31,159.27,1.57091496]
[1724658292426,390.3,159.31,159.28,1.57091496]
[1724658292647,390.3,159.31,159.27,1.57091496]
[1724658292849,390.3,159.31,159.28,1.57091496]
[1724658293063,390.3,159.31,159.26,9.67778006]
[1724658293064,390.3,159.31,159.27,1.57091496]
[1724658293264,44.6336,159.33,159.28,1.57091496]
[1724658293567,1.56957864,159.32,159.29,1.57091496]
[1724658293859,1.56957864,159.32,159.27,1.57091496]
[1724658294061,46.20301576,159.33,159.28,1.57091496]
[1724658294357,31.6597,159.33,159.29,1.57091496]
[1724658294531,31.6597,159.33,159.3,11.24869502]
[1724658294738,31.6597,159.33,159.3,9.67778006]
[1724658295041,31.6597,159.33,159.3,11.24860695]
[1724658295243,33.22895842,159.33,159.29,1.57082689]
[1724658295444,1.56930619,159.32,159.3,1.57082594]
[1724658296167,1.56930619,159.32,159.29,1.57082594]
[1724658296336,1.56930619,159.32,159.3,1.57082594]
[1724658296537,1.56930619,159.32,159.29,1.57082594]
[1724658296849,1.56930619,159.32,159.3,1.57082594]
[1724658297174,1.56930619,159.32,159.29,1.57082594]
[1724658297335,1.56930619,159.32,159.3,1.57082594]
[1724658297538,31.6597,159.33,159.29,1.57082594]
[1724658297746,1.56934597,159.32,159.3,1.57082594]
[1724658297957,1.56934597,159.32,159.29,1.57082594]
[1724658298247,1.56934597,159.32,159.25,6.16732857]
[1724658298248,1.56934597,159.32,159.3,1.57083442]
[1724658298452,1.56934597,159.32,159.27,7.73816299]
[1724658298761,1.56934597,159.32,159.28,1.57083442]
[1724658299065,1.56934597,159.32,159.29,1.57083442]
[1724658299245,1.56934597,159.32,159.3,1.57083442]
[1724658299450,1.56934597,159.32,159.28,1.57083442]
[1724658299652,1.56934597,159.32,159.29,1.57083442]
[1724658299851,1.56934597,159.32,159.3,1.57083442]
[1724658300056,1.56934597,159.32,159.28,1.57083442]
[1724658300256,1.56934597,159.32,159.27,6.16732857]
[1724658300257,1.56934597,159.32,159.29,1.57083442]
[1724658300571,1.56934597,159.32,159.3,1.57083442]
[1724658300873,1.56934597,159.32,159.28,1.57083442]
[1724658301046,1.56934597,159.32,159.29,1.57083442]
[1724658301248,1.56934597,159.32,159.3,1.57083442]
[1724658301448,1.56934597,159.32,159.28,1.57083442]
[1724658301751,1.56934597,159.32,159.24,6.27665505]
[1724658301752,1.56934597,159.32,159.29,1.57083442]
[1724658301949,1.56934597,159.32,159.26,7.73816299]
[1724658302140,1.56934597,159.32,159.27,1.57083442]
[1724658302465,1.56934597,159.32,159.28,1.57083442]
[1724658302773,1.56934597,159.32,159.29,1.57083442]
[1724658303074,1.56934597,159.32,159.26,7.73816299]
[1724658303256,1.56934597,159.32,159.27,1.57083442]
[1724658303570,1.56934597,159.32,159.28,1.57097521]
[1724658303752,1.56934597,159.32,159.25,6.16256301]
[1724658303957,1.56934597,159.32,159.26,1.57104281]
[1724658304282,1.56934597,159.32,159.27,1.57104281]
[1724658304451,1.56934597,159.32,159.28,1.57104281]
[1724658304636,31.6597,159.33,159.29,1.57104281]
[1724658304842,31.6597,159.33,159.27,1.57104281]
[1724658305148,31.6597,159.33,159.28,1.57104281]
[1724658305474,31.6597,159.33,159.29,1.57104281]
[1724658305649,31.6597,159.33,159.26,7.73360582]
[1724658305845,31.6597,159.33,159.27,1.57104281]
[1724658306047,31.6597,159.33,159.28,1.57104281]
[1724658306238,1.56963827,159.32,159.29,1.57104281]
[1724658306442,1.56963827,159.32,159.24,9.67778006]
[1724658306641,1.56963827,159.32,159.25,7.73495763]
[1724658306851,1.56963827,159.32,159.26,7.73495763]
[1724658307051,1.56963827,159.32,159.27,1.57104255]
[1724658307250,1.56963827,159.32,159.28,1.57104255]
[1724658307569,1.56963827,159.32,159.29,1.57104255]
[1724658307770,1.56963827,159.32,159.26,6.16391508]
[1724658308071,31.6597,159.33,159.27,1.57104255]
[1724658308245,31.6597,159.33,159.28,1.57104255]
[1724658308447,31.6597,159.33,159.29,1.57104255]
[1724658308768,1.56959662,159.32,159.25,6.16391508]
[1724658308950,1.56959662,159.32,159.26,7.73495081]
[1724658309145,1.56959662,159.32,159.27,7.73495081]
[1724658309346,1.56959662,159.32,159.28,1.57103573]
[1724658309548,1.56959662,159.32,159.29,1.57103573]
[1724658309747,1.56959662,159.32,159.24,9.67778006]
[1724658309947,1.56959662,159.32,159.25,6.16484175]
[1724658310171,1.56959662,159.32,159.26,6.16484175]
[1724658310471,1.56960564,159.31,159.27,6.16484175]
[1724658310765,1.56971227,159.3,159.26,6.16484175]
[1724658310980,391.86972674,159.32,159.27,1.25690059]
[1724658311148,391.86972674,159.32,159.28,1.25690059]
[1724658311464,391.86972674,159.32,159.26,7.42174234]
[1724658311655,390.3,159.32,159.27,7.42174234]
[1724658311978,390.3,159.32,159.29,9.67778006]
[1724658312161,390.3,159.32,159.3,1.25690059]
[1724658312669,390.3,159.32,159.28,7.42174234]
[1724658312977,390.3,159.32,159.29,7.41999128]
[1724658313179,390.3,159.32,159.3,7.41999128]
[1724658313350,390.3,159.32,159.27,9.67778006]
[1724658313351,390.3,159.32,159.28,6.16330568]
[1724658313669,1.56945068,159.31,159.29,6.16330568]
[1724658313875,1.56945068,159.31,159.28,6.16330568]
[1724658314064,1.56945068,159.31,159.26,6.16330568]
[1724658314262,1.56945068,159.31,159.27,6.16330568]
[1724658314574,1.56945068,159.31,159.28,6.16330568]
[1724658314775,390.3,159.32,159.29,6.16330568]
[1724658314969,390.3,159.32,159.26,6.16330568]
[1724658315168,390.3,159.32,159.27,6.16330568]
[1724658315365,390.3,159.32,159.28,6.16330568]
[1724658315562,390.3,159.32,159.29,6.16330568]
[1724658315862,390.3,159.32,159.3,6.16330568]
[1724658316174,390.3,159.32,159.27,9.67778006]
[1724658316361,1.56952071,159.31,159.28,6.16230861]
[1724658316567,1.56952071,159.31,159.29,6.16230861]
[1724658316758,1.56952071,159.31,159.3,6.16230861]
[1724658317264,1.56956647,159.35,159.26,6.16230861]
[1724658317468,56.24734653,159.35,159.27,6.16230861]
[1724658317654,56.24734653,159.35,159.28,6.16230861]
[1724658317981,56.24734653,159.35,159.25,9.67778006]
[1724658317982,56.24734653,159.35,159.29,6.16230861]
[1724658318276,56.24734653,159.35,159.25,9.67778006]
[1724658318462,56.24734653,159.35,159.26,6.16486375]
[1724658318666,56.24734653,159.35,159.27,6.16486375]
[1724658318856,56.24734653,159.35,159.22,55.59269086]
[1724658318857,9.67778006,159.32,159.28,6.16486375]
[1724658319053,1.56995597,159.31,159.23,6.16791074]
[1724658319362,1.56995597,159.31,159.24,6.16813899]
[1724658319559,1.56995597,159.31,159.23,9.67778006]
[1724658319560,1.56995597,159.31,159.25,6.16813899]
[1724658319771,1.56995597,159.31,159.23,9.67778006]
[1724658320169,1.56995597,159.31,159.2,9.01670735]
[1724658320393,391.86995597,159.31,159.22,9.67778006]
[1724658321282,391.86995597,159.31,159.24,9.67778006]
[1724658321479,391.86995597,159.31,159.21,32.7146]
[1724658321703,390.3,159.31,159.26,9.67778006]
[1724658325191,390.3,159.31,159.27,7.84715821]
[1724658325396,44.0335,159.34,159.27,7.84715821]
[1724658325560,1.56946394,159.33,159.27,7.84722554]
[1724658325757,1.56946424,159.32,159.27,7.84722554]
[1724658326183,1.56945188,159.33,159.28,3.57082203]
[1724658326372,1.56946422,159.32,159.29,3.57082203]
[1724658326578,1.56946422,159.32,159.3,3.57082203]
[1724658326783,1.56946422,159.32,159.31,3.57082203]
[1724658327369,1.56943242,159.33,159.31,3.57082203]
[1724658327571,44.0335,159.34,159.32,3.57082203]
[1724658327775,44.0335,159.34,159.33,3.57082203]
[1724658329484,45.6029131,159.34,159.33,3.57082203]
[1724658332512,32.3967131,159.34,159.33,3.57082203]
[1724658332803,3.26870537,159.38,159.33,3.57082203]
[1724658333103,1.56901599,159.37,159.34,3.57082203]
[1724658333304,1.56900897,159.39,159.32,17.5250056]
[1724658333906,31.1861,159.4,159.34,9.67778006]
[1724658334117,35.01250537,159.44,159.36,9.67778006]
[1724658334279,31.7438,159.44,159.38,9.67778006]
[1724658334616,1.56854496,159.43,159.38,9.67778006]
[1724658335112,31.7438,159.44,159.38,9.67778006]
[1724658335303,33.31219436,159.44,159.38,9.67778006]
[1724658335482,33.31219436,159.44,159.35,7.83164605]
[1724658335678,33.31219436,159.44,159.36,9.67778006]
[1724658336008,49.26197442,159.44,159.34,39.61214605]
[1724658336307,45.0,159.43,159.33,17.50942611]